fUSD/lending_fUSD_20240121
["ID","MTS","AMOUNT","RATE_DAILY","PERIOD"]
[312366032,1705833869672,-150.0,0.000499,30]
[312366033,1705833869699,-150.0,0.000499,30]
[312366034,1705833869725,-150.0,0.000499,30]
[312366035,1705833869752,-150.0,0.000499,30]
[312366036,1705833869779,-2221.62854585,0.000499,60]
[312366037,1705833869807,-363.31012614,0.000499,120]
[312366038,1705833869834,-213.6855486,0.000499,30]
[312366039,1705833869863,-1308.7585,0.000499,30]
[312366040,1705833869891,-33374.2858053,0.000499,30]
[312366041,1705833869918,-261.88730025,0.000499,30]
[312366042,1705833869944,-155.74745849,0.000499,30]
[312366043,1705833869970,-153.01462548,0.000499,30]
[312366044,1705833869996,-152.56188701,0.000499,30]
[312366045,1705833870024,-2662.27375239,0.00049903,60]
[312366046,1705833870050,-2996.01891552,0.00049904,60]
[312366047,1705833870076,-2929.60259301,0.00049905,60]
[312366048,1705833870103,-2926.47548191,0.00049906,60]
[312366049,1705833870129,-2833.39989909,0.00049907,60]
[312366050,1705833870155,-2998.21293962,0.00049907,60]
[312366051,1705833870181,-2933.9160002,0.00049908,60]
[312366052,1705833870208,-2930.37255702,0.00049909,60]
[312366053,1705833870235,-495.48004118,0.0004991,60]
[312366054,1705833870262,-2857.52551349,0.0004991,60]
[312366055,1705833870289,-2946.0774358,0.0004991,60]
[312366056,1705833870315,-2828.86327819,0.00049912,60]
[312366057,1705833870342,-2833.90325952,0.00049912,60]
[312366058,1705833870369,-150.0,0.00049913,60]
[312366059,1705833870397,-2056.44455552,0.00049916,60]
[312366060,1705833870425,-2929.25997412,0.00049916,60]
[312366061,1705833870457,-2931.23987105,0.00049917,60]
[312366062,1705833870503,-2930.00869894,0.00049918,60]
[312366063,1705833870549,-2938.68483853,0.00049918,60]
[312366064,1705833870593,-2934.46203462,0.00049919,60]
[312366065,1705833870636,-2929.19285567,0.00049921,60]
[312366066,1705833870678,-2943.46250957,0.00049921,60]
[312366067,1705833870722,-2758.71973556,0.00049923,60]
[312366068,1705833870767,-2371.10764725,0.00049924,60]
[312366069,1705833870804,-2911.1453974,0.00049924,60]
[312366070,1705833870843,-1507.04789515,0.00049926,60]
[312366071,1705833870881,-2736.64247717,0.00049926,60]
[312366072,1705833870919,-2997.31883606,0.00049929,60]
[312366073,1705833870956,-2883.21193721,0.0004993,60]
[312366074,1705833870995,-2696.57850519,0.0004993,60]
[312366075,1705833871033,-422.04633984,0.00049932,60]
[312366076,1705833871073,-2821.07732089,0.00049935,60]
[312366077,1705833871111,-2978.43180768,0.00049936,60]
[312366078,1705833871138,-750.85598843,0.00049938,60]
[312366079,1705833871165,-1594.68636581,0.00049938,60]
[312366080,1705833871193,-2837.92984544,0.00049943,60]
[312366081,1705833871221,-2360.67217972,0.00049943,60]
[312366082,1705833871249,-2850.45373159,0.00049945,60]
[312366083,1705833871277,-2839.35620972,0.00049946,60]
[312366084,1705833871304,-2926.98825938,0.00049946,60]
[312366085,1705833871332,-2938.87398876,0.00049947,60]
[312366086,1705833871361,-2994.96297571,0.00049948,60]
[312366087,1705833871390,-2858.26068708,0.0004995,60]
[312366088,1705833871417,-2784.47781759,0.00049951,60]
[312366089,1705833871445,-2848.02637516,0.00049952,60]
[312366090,1705833871473,-2929.3334194,0.00049953,60]
[312366091,1705833871499,-1509.73238963,0.00049953,60]
[312366092,1705833871526,-2768.8240108,0.00049957,60]
[312366093,1705833871552,-2079.1656051,0.00049957,60]
[312366094,1705833871580,-2528.65626363,0.00049958,60]
[312366095,1705833871607,-2831.28435626,0.00049959,60]
[312366096,1705833871633,-2993.86749188,0.0004996,60]
[312366097,1705833871659,-2930.85157363,0.00049961,60]
[312366098,1705833871686,-2931.40991697,0.00049962,60]
[312366099,1705833871712,-2868.02731957,0.00049962,60]
[312366100,1705833872132,-2723.8733553,0.00049963,60]
[312366101,1705833872163,-191.35942139,0.00049964,60]
[312366102,1705833872191,-2933.09613209,0.00049964,60]
[312366103,1705833872219,-2930.04779447,0.00049967,60]
[312366104,1705833872246,-2780.81105817,0.00049969,60]
[312366105,1705833872274,-2735.81550222,0.0004997,60]
[312366106,1705833872300,-2943.9478442,0.00049971,60]
[312366107,1705833872327,-2941.71894934,0.00049973,60]
[312366108,1705833872355,-2814.84747932,0.00049973,60]
[312366109,1705833872383,-2925.97766326,0.0004998,60]
[312366110,1705833872410,-2926.96656815,0.00049983,60]
[312366111,1705833872437,-2933.12447335,0.00049985,60]
[312366112,1705833872464,-2842.89824843,0.00049986,60]
[312366113,1705833872491,-2997.89511096,0.00049987,60]
[312366114,1705833872519,-500.0,0.00049987,49]
[312366115,1705833872546,-2839.63118564,0.00049989,60]
[312366116,1705833872574,-1000.0,0.00049989,120]
[312366117,1705833872601,-2934.52207518,0.0004999,60]
[312366118,1705833872628,-150.0,0.0004999,60]
[312366119,1705833872655,-150.0,0.0004999,60]
[312366120,1705833872682,-150.0,0.0004999,60]
[312366121,1705833872709,-150.0,0.0004999,60]
[312366122,1705833872735,-1062.96695863,0.0004999,120]
[312366123,1705833872767,-300.0,0.00049992,120]
[312366124,1705833872794,-300.0,0.00049992,120]
[312366125,1705833872823,-16000.0,0.00049992,120]
[312366126,1705833872852,-2874.5983526,0.00049993,60]
[312366127,1705833872879,-2996.85456625,0.00049994,60]
[312366128,1705833872907,-2931.28299778,0.00049994,60]
[312366129,1705833872934,-2282.59583393,0.00049995,60]
[312366130,1705833872961,-2839.43362891,0.00049995,60]
[312366131,1705833872987,-2925.95459767,0.00049997,60]
[312366132,1705833873014,-2935.1308467,0.00049998,60]
[312366133,1705833873042,-2926.88278896,0.00049999,60]
[312366134,1705833873069,-2566.41546373,0.00049999,60]
[312366135,1705833873095,-2727.95125998,0.00049999,60]
[312366136,1705833873124,-1000.0,0.00049999,120]
[312366137,1705833873153,-50000.0,0.0005,40]
[312366138,1705833873182,-43253.73489902,0.0005,30]
[312366139,1705833873210,-1000.0,0.0005,30]
[312366140,1705833873237,-341.20969115,0.0005,30]
[312366141,1705833873266,-4627.42345086,0.0005,30]
[312366142,1705833873294,-2500.0,0.0005,30]
[312366143,1705833873321,-5000.0,0.0005,30]
[312366144,1705833873350,-500.88,0.0005,30]
[312366145,1705833873378,-2878.45088901,0.0005,60]
[312366146,1705833873407,-525.44826299,0.0005,120]
[312366147,1705833873435,-300.0,0.0005,120]
[312366148,1705833873462,-1163.10456177,0.0005,120]
[312366149,1705833873489,-362.53343971,0.0005,120]
[312366150,1705833873517,-766.96590003,0.0005,120]
[312366151,1705833873544,-10167.990527,0.0005,30]
[312366152,1705833873571,-200.0,0.0005,90]
[312366153,1705833873601,-8893.31,0.0005,120]
[312366154,1705833873629,-745.48335045,0.0005,90]
[312366155,1705833873657,-300.0,0.0005,51]
[312366156,1705833873685,-500000.0,0.0005,120]
[312366157,1705833873716,-725.96421338,0.0005,30]
[312366158,1705833873746,-6377.0,0.0005,30]
[312366159,1705833873778,-3622.74335247,0.0005,30]
[312366160,1705833873806,-262.7,0.0005,120]
[312366161,1705833873835,-500000.0,0.0005,120]
[312366162,1705833873863,-5000.0,0.0005,120]
[312366163,1705833873890,-2809.72,0.0005,120]
[312366164,1705833873918,-15000.0,0.0005,120]
[312366165,1705833873947,-832.86,0.0005,120]
[312366166,1705833873975,-3050.63,0.0005,120]
[312366167,1705833874003,-5000.0,0.0005,120]
[312366168,1705833874031,-5000.0,0.0005,120]
[312366169,1705833874058,-5000.0,0.0005,120]
[312366170,1705833874085,-5000.0,0.0005,120]
[312366171,1705833874114,-5000.0,0.0005,120]
[312366172,1705833874142,-781.215,0.0005,35]
[312366173,1705833874172,-1511.21,0.0005,120]
[312366174,1705833874200,-200.0,0.0005,30]
[312366175,1705833874230,-5000.0,0.0005,120]
[312366176,1705833874259,-5000.0,0.0005,120]
[312366177,1705833874287,-5000.0,0.0005,120]
[312366178,1705833874316,-10542.59,0.00050063,120]
[312366179,1705833874344,-5000.0,0.00050125,120]
[312366180,1705833874373,-5000.0,0.00050125,120]
[312366181,1705833874402,-4771.09,0.00050125,120]
[312366182,1705833874430,-5000.0,0.00050125,120]
[312366183,1705833874461,-634.16,0.00050136,30]
[312366184,1705833874490,-360.00117055,0.000502,30]
[312366185,1705833874519,-5000.0,0.0005025,120]
[312366186,1705833874658,-5000.0,0.0005025,120]
[312366187,1705833874687,-2486.54,0.0005025,120]
[312366188,1705833874720,-5000.0,0.00050375,120]
[312366189,1705833874749,-5000.0,0.00050375,120]
[312366190,1705833874778,-634.16,0.0005041,30]
[312366191,1705833874807,-1000.0,0.00050499,120]
[312366192,1705833874837,-5000.0,0.000505,120]
[312366193,1705833874866,-2111.1255929,0.000505,120]
[312366194,1705833879248,-500.0,0.0004442,30]
[312366195,1705833879294,-500.0,0.00044694,30]
[312366196,1705833879328,-500.0,0.00044968,30]
[312366197,1705833879376,-500.0,0.00049626,30]
[312366198,1705833879408,-150.0,0.0005,30]
[312366199,1705833879437,-500.0,0.00050174,30]
[312366200,1705833879467,-2888.8744071,0.000505,120]
[312366201,1705833879497,-350.0,0.00050603,120]
[312366202,1705833879525,-5000.0,0.00050625,120]
[312366203,1705833879553,-5000.0,0.00050625,120]
[312366204,1705833879582,-634.16,0.00050684,30]
[312366205,1705833879611,-388.47771241,0.00050722,30]
[312366206,1705833879638,-5000.0,0.0005075,120]
[312366207,1705833879666,-2000.0,0.00050832,120]
[312366208,1705833879694,-383.27986496,0.00050832,120]
[312366209,1705833879722,-400.0,0.00050849,120]
[312366210,1705833879752,-5000.0,0.00050875,120]
[312366211,1705833879780,-634.16,0.00050958,30]
[312366212,1705833879810,-1000.0,0.00050999,120]
[312366213,1705833879839,-50000.0,0.00051,41]
[312366214,1705833879872,-9989.02879379,0.00051,30]
[312366215,1705833879899,-5000.0,0.00051,30]
[312366216,1705833879928,-300.0,0.00051,52]
[312366217,1705833879960,-5000.0,0.00051,120]
[312366218,1705833879987,-2000.0,0.000511,30]
[312366219,1705833880015,-201.71235882,0.000511,30]
[312366220,1705833880044,-5000.0,0.00051125,120]
[312366221,1705833880074,-634.16,0.00051232,30]
[312366222,1705833880103,-5000.0,0.0005125,120]
[312366223,1705833880130,-5000.0,0.00051375,120]
[312366224,1705833880158,-5000.0,0.000515,120]
[312366225,1705833880187,-634.16,0.00051506,30]
[312366226,1705833880215,-228.9,0.0005155,120]
[312366227,1705833880244,-399.75,0.00051557,120]
[312366228,1705833880273,-5000.0,0.00051625,120]
[312366229,1705833880302,-5000.0,0.0005175,120]
[312366230,1705833880330,-634.16,0.0005178,30]
[312366231,1705833880359,-350.0,0.00051781,120]
[312366232,1705833880387,-400.0,0.00051836,120]
[312366233,1705833880418,-5000.0,0.00051875,120]
[312366234,1705833880446,-151.73761983,0.000519,60]
[312366235,1705833880475,-200.0,0.00051987,83]
[312366236,1705833880505,-50000.0,0.00052,42]
[312366237,1705833880534,-1000.0,0.00052,30]
[312366238,1705833880562,-5000.0,0.00052,30]
[312366239,1705833880590,-300.0,0.00052,53]
[312366240,1705833880618,-300.0,0.00052,30]
[312366241,1705833880646,-150.0,0.00052,30]
[312366242,1705833880673,-5000.0,0.00052,120]
[312366243,1705833880700,-20053.13830251,0.0005205,30]
[312366244,1705833880727,-634.16,0.00052054,30]
[312366245,1705833880757,-209.0,0.00052074,48]
[312366246,1705833880784,-3592.28465493,0.000521,30]
[312366247,1705833880818,-5000.0,0.00052125,120]
[312366248,1705833880846,-5000.0,0.0005225,120]
[312366249,1705833880877,-634.16,0.00052328,30]
[312366250,1705833880905,-7651.8,0.00052331,117]
[312366251,1705833880933,-5000.0,0.00052375,120]
[312366252,1705833880963,-5000.0,0.000525,120]
[312366253,1705833880991,-634.16,0.00052602,30]
[312366254,1705833881018,-5000.0,0.00052625,120]
[312366255,1705833881046,-5000.0,0.0005275,120]
[312366256,1705833881074,-400.0,0.00052822,120]
[312366257,1705833881102,-5000.0,0.00052875,120]
[312366258,1705833881130,-634.16,0.00052876,30]
[312366259,1705833881159,-350.0,0.00052959,120]
[312366260,1705833881188,-1000.0,0.00052999,120]
[312366261,1705833881219,-50000.0,0.00053,43]
[312366262,1705833881247,-1022.0,0.00053,30]
[312366263,1705833881275,-5000.0,0.00053,30]
[312366264,1705833881303,-1850.969994,0.00053,60]
[312366265,1705833881531,-300.0,0.00053,57]
[312366266,1705833881561,-300.0,0.00053,31]
[312366267,1705833881590,-5000.0,0.00053,120]
[312366268,1705833881617,-150.0,0.00053,31]
[312366269,1705833881659,-634.16,0.0005315,30]
[312366270,1705833881688,-634.16,0.00053424,30]
[312366271,1705833881716,-228.9,0.00053569,120]
[312366272,1705833881748,-634.16,0.00053698,30]
[312366273,1705833881777,-400.0,0.00053808,120]
[312366274,1705833881807,-1450.56078638,0.00053947,60]
[312366275,1705833881835,-19565.46268125,0.00053947,60]
[312366276,1705833881864,-1083.3096264,0.00053947,60]
[312366277,1705833881891,-35292.42700186,0.00053948,60]
[312366278,1705833881919,-2458.48825097,0.00053949,60]
[312366279,1705833881948,-3376.87637629,0.0005395,60]
[312366280,1705833881977,-34927.05114099,0.0005395,60]
[312366281,1705833882005,-231.40252026,0.0005395,60]
[312366282,1705833882034,-25412.63721592,0.00053951,60]
[312366283,1705833882064,-277213.2148315,0.00053951,60]
[312366284,1705833882092,-2458.48825097,0.00053952,60]
[312366285,1705833882121,-2458.48825097,0.00053953,60]
[312366286,1705833882155,-35292.42700186,0.00053954,60]
[312366287,1705833882184,-1450.56078638,0.00053955,60]
[312366288,1705833882214,-34927.05114099,0.00053957,60]
[312366289,1705833882245,-1083.3096264,0.00053957,60]
[312366290,1705833882275,-1083.3096264,0.00053958,60]
[312366291,1705833882304,-849.36874785,0.00053958,60]
[312366292,1705833882334,-200.0,0.00053959,60]
[312366293,1705833882364,-2972.87583742,0.0005396,60]
[312366294,1705833882396,-3376.87637629,0.00053961,60]
[312366295,1705833882427,-25412.63721592,0.00053961,60]
[312366296,1705833882458,-1083.3096264,0.00053963,60]
[312366297,1705833882488,-231.40252026,0.00053964,60]
[312366298,1705833882517,-1450.56078638,0.00053964,60]
[312366299,1705833882545,-25412.63721592,0.00053965,60]
[312366300,1705833882574,-19565.46268125,0.00053965,60]
[312366301,1705833882602,-19565.46268125,0.00053971,60]
[312366302,1705833882632,-4471.94348039,0.00053972,60]
[312366303,1705833882660,-4965.85878364,0.00053972,60]
[312366304,1705833882690,-634.16,0.00053972,30]
[312366305,1705833882717,-2972.87583742,0.00053975,60]
[312366306,1705833882751,-200.0,0.00053976,60]
[312366307,1705833882779,-1722.33394822,0.00053976,60]
[312366308,1705833882811,-4471.94348039,0.00053977,60]
[312366309,1705833882840,-277213.2148315,0.00053977,60]
[312366310,1705833882869,-849.36874785,0.00053979,60]
[312366311,1705833882898,-34927.05114099,0.0005398,60]
[312366312,1705833882928,-849.36874785,0.00053981,60]
[312366313,1705833882955,-3376.87637629,0.00053981,60]
[312366314,1705833882983,-1722.33394822,0.00053981,60]
[312366315,1705833883010,-2972.87583742,0.00053982,60]
[312366316,1705833883039,-19565.46268125,0.00053982,60]
[312366317,1705833883068,-849.36874785,0.00053983,60]
[312366318,1705833883096,-277213.2148315,0.00053984,60]
[312366319,1705833883124,-35292.42700186,0.00053984,60]
[312366320,1705833883153,-3376.87637629,0.00053984,60]
[312366321,1705833883184,-25412.63721592,0.00053984,60]
[312366322,1705833883214,-200.0,0.00053987,87]
[312366323,1705833883242,-4965.85878364,0.00053987,60]
[312366324,1705833883270,-4471.94348039,0.00053988,60]
[312366325,1705833883298,-1722.33394822,0.00053988,60]
[312366326,1705833883327,-34927.05114099,0.00053988,60]
[312366327,1705833883356,-200.0,0.00053988,60]
[312366328,1705833883384,-4965.85878364,0.00053989,60]
[312366329,1705833883413,-231.40252026,0.00053989,60]
[312366330,1705833883441,-2458.48825097,0.0005399,60]
[312366331,1705833883469,-277213.2148315,0.00053994,60]
[312366332,1705833883495,-2972.87583742,0.00053994,60]
[312366333,1705833883524,-200.0,0.00053995,60]
[312366334,1705833883551,-35292.42700186,0.00053995,60]
[312366335,1705833883579,-4471.94348039,0.00053995,60]
[312366336,1705833883607,-1722.33394822,0.00053996,60]
[312366337,1705833883635,-231.40252026,0.00053997,60]
[312366338,1705833883664,-1450.56078638,0.00053999,60]
[312366339,1705833883692,-200.0,0.00053999,60]
[312366340,1705833883720,-4965.85878364,0.00053999,60]
[312366341,1705833883753,-50000.0,0.00054,44]
[312366342,1705833883782,-5000.0,0.00054,30]
[312366343,1705833883812,-300.0,0.00054,55]
[312366344,1705833883842,-300.0,0.00054,32]
[312366345,1705833883870,-150.0,0.00054,32]
[312366346,1705833883899,-568.949528,0.00054,30]
[312366347,1705833883929,-350.0,0.00054137,120]
[312366348,1705833883958,-634.16,0.00054246,30]
[312366349,1705833883987,-150.5206381,0.0005439,30]
[312366350,1705833884019,-634.16,0.0005452,30]
[312366351,1705833884048,-634.16,0.00054794,30]
[312366352,1705833884078,-400.0,0.00054795,120]
[312366353,1705833884115,500.0,0.00045242,30]
[312366354,1705833884171,500.0,0.00045516,30]
[312366355,1705833884256,500.0,0.0004579,30]
[312366356,1705833884390,500.0,0.00046064,30]
[312366357,1705833884451,500.0,0.00046338,30]
[312366358,1705833884488,500.42458942,0.00045,120]
[312366359,1705833884571,500.0,0.00046612,30]
[312366360,1705833884986,150.0,0.00046338,30]
[312366361,1705833885023,500.0,0.00041095,31]
[312366362,1705833885211,500.0,0.00041369,31]
[312366363,1705833885573,500.0,0.00046886,30]
[312366364,1705833885806,500.0,0.00041643,31]
[312366365,1705833886080,500.0,0.00041917,31]
[312366366,1705833886210,1345.07202141,0.0004,30]
[312366367,1705833886320,500.0,0.00042191,31]
[312366368,1705833886356,500.0,0.0004716,30]
[312366369,1705833886577,500.0,0.00042465,31]
[312366370,1705833886827,434.33542868,0.00042739,31]
[312366371,1705833887125,500.0,0.00047434,30]
[312366372,1705833887888,500.0,0.00047708,30]
[312366373,1705833889009,500.0,0.00047982,30]
[312366374,1705833890277,500.0,0.00048256,30]
[312366375,1705833890938,460879.09213048,0.000449,30]
[312366376,1705833891095,500.0,0.0004853,30]
[312366377,1705833891869,500.0,0.00048804,30]
[312366378,1705833892638,500.0,0.00049078,30]
[312366379,1705833893100,945.87971938,0.00045,30]
[312366380,1705833893438,500.0,0.00049352,90]
[312366381,1705833894282,500.0,0.00049626,90]
[312366382,1705833895013,500.0,0.00050174,90]
[312366383,1705833895820,500.0,0.00050722,90]
[312366384,1705833896087,150.0,0.00050174,30]
[312366385,1705833896603,500.0,0.0005127,90]
[312366386,1705833896819,500.0,0.00041095,31]
[312366387,1705833933967,209.0,0.00019371,2]
[312366388,1705833964623,209.0,0.00019371,2]
[312366392,1705834023851,199.2,0.00019371,2]
[312366393,1705834023877,9.8,0.00019371,2]
[312366400,1705834201464,315.53,0.00019285,2]
[312366420,1705834232066,-469.08768066,0.00021168,2]
[312366421,1705834232076,-175.54086524,0.00021169,2]
[312366422,1705834232086,-250.0,0.00021197,2]
[312366423,1705834232096,-150.0,0.00021219,2]
[312366424,1705834232105,-150.0,0.00021221,2]
[312366425,1705834232114,-161.45626377,0.0002125,2]
[312366426,1705834232134,-169.54373623,0.0002125,2]
[312366427,1705834232143,-228.9,0.00021269,2]
[312366428,1705834232152,-224.22741366,0.00021273,2]
[312366429,1705834232178,-139.25258634,0.00021273,2]
[312366430,1705834232187,-499.99,0.00021273,2]
[312366431,1705834232197,-250.68,0.00021276,2]
[312366432,1705834232206,-158.85,0.00021397,2]
[312366433,1705834232216,-150.0,0.00021445,2]
[312366434,1705834232226,-160.13,0.00021467,2]
[312366435,1705834232235,-188.37756045,0.00021467,2]
[312366436,1705834232245,-636.52,0.00021499,2]
[312366437,1705834232254,-777.36510554,0.00021503,2]
[312366438,1705834232266,-611.14291171,0.00021503,2]
[312366439,1705834232277,-422.95079672,0.00021503,2]
[312366440,1705834232291,-22088.54118603,0.00021503,2]
[312366441,1705834232301,-171.71,0.00021509,2]
[312366442,1705834232311,-2000.0,0.00021521,2]
[312366443,1705834232321,-315.53,0.00021549,2]
[312366444,1705834232331,-1237.96,0.00021644,2]
[312366445,1705834232341,-161.66,0.00021694,2]
[312366446,1705834232351,-250.0,0.000219,2]
[312366447,1705834232360,-250.0,0.00021918,2]
[312366448,1705834232370,-176.39,0.00022,2]
[312366449,1705834232381,-979.43084688,0.00022,2]
[312366450,1705834232391,-150.0,0.00022,2]
[312366451,1705834232400,-150.0,0.00022,2]
[312366452,1705834232411,-150.0,0.00022,2]
[312366453,1705834232421,-175.54086522,0.00022035,2]
[312366454,1705834232430,-3424.48121112,0.00022205,2]
[312366455,1705834232441,-162.3478818,0.00022205,3]
[312366456,1705834232450,-174.55,0.00022222,2]
[312366457,1705834232459,-174.55,0.00022245,2]
[312366458,1705834232468,-174.55,0.00022268,2]
[312366459,1705834232478,-174.55,0.00022292,2]
[312366460,1705834232487,-174.55,0.00022315,2]
[312366461,1705834232496,-174.55,0.00022338,2]
[312366462,1705834232506,-174.55,0.00022362,2]
[312366463,1705834232516,-204.0,0.00022378,2]
[312366464,1705834232525,-174.55,0.00022385,2]
[312366465,1705834232534,-174.55,0.00022408,2]
[312366466,1705834232543,-174.55,0.00022432,2]
[312366467,1705834232552,-1237.96,0.00022445,2]
[312366468,1705834232562,-174.55,0.00022455,2]
[312366469,1705834232571,-174.55,0.00022478,2]
[312366470,1705834232580,-390.7268265,0.00022489,2]
[312366471,1705834232589,-23087.1827956,0.00022499,2]
[312366472,1705834232771,-451.63886766,0.00022499,2]
[312366474,1705834238066,-1955.221034,0.00022499,2]
[312366475,1705834238227,-1227.84208256,0.00022499,2]
[312366476,1705834238281,-2188.94092018,0.00022499,2]
[312366477,1705834238291,-500.0,0.00022499,2]
[312366478,1705834238300,-174.55,0.00022502,2]
[312366479,1705834238309,-158.85,0.00022512,2]
[312366480,1705834238318,-174.55,0.00022525,2]
[312366481,1705834238328,-176.39,0.00022548,2]
[312366482,1705834238339,-176.35630077,0.00022548,2]
[312366483,1705834238349,-214.92979742,0.00022548,2]
[312366484,1705834238359,-174.55,0.00022548,2]
[312366485,1705834238369,-174.55,0.00022572,2]
[312366486,1705834238378,-174.55,0.00022595,2]
[312366487,1705834238388,-357.10627192,0.00022597,2]
[312366488,1705834238399,-1172.37051907,0.00022597,2]
[312366489,1705834238408,-199.32847921,0.00022597,2]
[312366490,1705834238417,-226.11786442,0.00022597,2]
[312366491,1705834238426,-1041.52762121,0.00022597,2]
[312366505,1705834238616,-158.30425297,0.00022597,2]
[312366507,1705834238627,-300.9098558,0.00022598,2]
[312366510,1705834238637,-500.0,0.00022598,2]
[312366512,1705834238646,-36342.23469323,0.00022599,2]
[312366515,1705834238671,-721.85810064,0.00022599,2]
[312366517,1705834238682,-14392.51840333,0.00022599,2]
[312366520,1705834238694,-551.28576192,0.00022599,2]
[312366563,1705834240584,-390.96466,0.00022599,2]
[312366564,1705834241114,-183595.62049928,0.00022599,2]
[312366565,1705834241126,-52166.7844816,0.00022599,2]
[312366566,1705834241136,-174.55,0.00022618,2]
[312366567,1705834241146,-1851.31601875,0.00022698,2]
[312366568,1705834241156,-1068.82822182,0.00022698,2]
[312366569,1705834241167,-155.0,0.00022699,2]
[312366570,1705834241177,-259.57374978,0.00022699,2]
[312366571,1705834241188,-4627.55845064,0.00022699,2]
[312366572,1705834241197,-12446.05423403,0.00022699,2]
[312366573,1705834241206,-275.98808753,0.00022699,2]
[312366574,1705834241216,-9627.15195872,0.0002274,2]
[312366575,1705834241235,-372.84804128,0.0002274,2]
[312366576,1705834241245,-8.21660402,0.00022748,4]
[312366577,1705834241256,-214.53776079,0.00022748,4]
[312366578,1705834241266,-9569.0,0.0002277,2]
[312366579,1705834241275,-8716.74189355,0.00022779,2]
[312366580,1705834241287,-777.57090645,0.00022779,2]
[312366581,1705834241296,-1315.02218636,0.00022779,2]
[312366582,1705834241308,-8306.41451495,0.00022779,2]
[312366583,1705834241336,-349.25209515,0.00022779,2]
[312366584,1705834241392,-616.7792413,0.00022779,2]
[312366607,1705834242741,40573.81,0.00036128,30]
[312366613,1705834243217,-2601.5819645,0.00022779,2]
[312366614,1705834243274,-296.95776435,0.00022779,2]
[312366615,1705834243286,-1060.31500001,0.00022779,2]
[312366616,1705834243297,-566.62860673,0.00022779,2]
[312366617,1705834243329,-4571.01202665,0.00022779,2]
[312366618,1705834243338,-137.38170197,0.00022799,2]
[312366619,1705834243351,-395.87,0.00022799,2]
[312366620,1705834243362,-260.63381433,0.00022799,2]
[312366621,1705834243385,-1610.1893674,0.00022799,2]
[312366622,1705834243396,-1129.52142299,0.00022799,2]
[312366623,1705834243408,-1827.40479331,0.00022799,2]
[312366624,1705834243421,-160.13,0.00022813,2]
[312366625,1705834243430,-730.31621503,0.0002288,2]
[312366626,1705834243439,-207.66828733,0.0002288,2]
[312366627,1705834243448,-730.31621498,0.00022882,2]
[312366628,1705834243458,-568.03725186,0.00022883,2]
[312366629,1705834243467,-730.31621498,0.00022884,2]
[312366631,1705834243477,-207.66828731,0.00022885,2]
[312366633,1705834243487,-730.31621498,0.00022885,2]
[312366634,1705834243496,-568.03725186,0.00022886,2]
[312366635,1705834243506,-730.31621498,0.00022887,2]
[312366636,1705834243515,-568.03725186,0.00022889,2]
[312366637,1705834243524,-730.31621498,0.00022889,2]
[312366638,1705834243534,-207.66828731,0.0002289,2]
[312366639,1705834243543,-730.31621498,0.00022891,2]
[312366640,1705834243552,-568.03725186,0.00022891,2]
[312366641,1705834243562,-730.31621498,0.00022893,2]
[312366642,1705834243571,-568.03725186,0.00022894,2]
[312366643,1705834243580,-730.31621498,0.00022895,2]
[312366644,1705834243589,-207.66828731,0.00022895,2]
[312366645,1705834243599,-730.31621498,0.00022896,2]
[312366646,1705834243608,-568.03725186,0.00022897,2]
[312366647,1705834243617,-874.92166106,0.00022898,2]
[312366648,1705834243626,-730.31621498,0.00022898,2]
[312366649,1705834243636,-177.72891972,0.00022899,2]
[312366650,1705834243646,-185.7482963,0.00022899,2]
[312366651,1705834243655,-331.23533859,0.00022899,2]
[312366652,1705834243666,-2028.92280855,0.00022899,2]
[312366653,1705834243678,-1002.28533892,0.00022899,2]